fUSD/lending_fUSD_20251127
["ID","MTS","AMOUNT","RATE_DAILY","PERIOD"]
[394976780,1764246207471,1838.63307693,0.00014485,2]
[394976781,1764246207493,3.32692307,0.00014485,2]
[394976782,1764246254195,203.12,0.00015,4]
[394976783,1764246312033,-162.90866655,0.00014835,2]
[394976784,1764246312066,-151.0,0.00014926,2]
[394976785,1764246312095,-374.44429683,0.00014926,2]
[394976786,1764246312128,-195.0,0.00014926,2]
[394976787,1764246312375,-195.0,0.0001493,2]
[394976788,1764246312408,-151.0,0.00014932,2]
[394976789,1764246312439,-150.0,0.00014933,2]
[394976790,1764246312469,-300.0,0.00014933,2]
[394976791,1764246312499,-300.0,0.00014933,2]
[394976792,1764246312533,-1200.0,0.00014933,2]
[394976793,1764246312565,-159.48452506,0.00014934,2]
[394976794,1764246312597,-359.75000844,0.00014934,2]
[394976795,1764246312636,-500.0,0.00014934,2]
[394976796,1764246312672,-500.0,0.00014934,2]
[394976797,1764246312707,-102.83500624,0.00014934,2]
[394976798,1764246312857,-397.16499376,0.00014934,2]
[394976799,1764246312889,-500.0,0.00014934,2]
[394976800,1764246312924,-500.0,0.00014934,2]
[394976801,1764246312958,-500.0,0.00014934,2]
[394976802,1764246312991,-500.0,0.00014934,2]
[394976803,1764246313025,-500.0,0.00014934,2]
[394976804,1764246313058,-500.0,0.00014934,2]
[394976805,1764246313093,-500.0,0.00014934,2]
[394976806,1764246313126,-500.0,0.00014934,2]
[394976807,1764246313158,-205.33235376,0.00014934,2]
[394976808,1764246313191,-295.01530496,0.00014934,2]
[394976809,1764246313266,-204.98469504,0.00014934,2]
[394976810,1764246313301,-500.0,0.00014934,2]
[394976811,1764246313337,-500.0,0.00014934,2]
[394976812,1764246313370,-500.0,0.00014934,2]
[394976813,1764246313402,-292.87591354,0.00014934,2]
[394976814,1764246313434,-500.0,0.00014934,2]
[394976815,1764246313465,-399.1905404,0.00014934,2]
[394976816,1764246313501,-500.0,0.00014934,2]
[394976817,1764246313534,-500.0,0.00014934,2]
[394976818,1764246313568,-182.37531469,0.00014934,2]
[394976819,1764246313597,-635.50412703,0.00014934,2]
[394976820,1764246314877,-1165.867,0.00014934,2]
[394976821,1764246314906,-156.943,0.00014934,2]
[394976822,1764246318500,7354.39,9e-05,2]
[394976823,1764246318522,149.4494797,9e-05,2]
[394976824,1764246347556,195.96729119,0.00014934,2]
[394976825,1764246349622,200.0,0.00014693,2]
[394976826,1764246361243,300.0,0.00014934,2]
[394976827,1764246371433,171.91974681,0.00014835,2]
[394976828,1764246376567,300.0,0.00025,120]
[394976830,1764246391009,3592.71564584,0.00014835,2]
[394976831,1764246393808,500.0,0.00014934,2]
[394976832,1764246394066,537.27144005,0.00014934,2]
[394976835,1764246422171,150.0,0.00014934,2]
[394976837,1764246443887,151.0,0.00014926,2]
[394976838,1764246448167,166.87822208,0.00014835,2]
[394976842,1764246481338,300.0,0.00014934,2]
[394976845,1764246498336,599.52711626,0.0001,2]
[394976851,1764246518530,3134.73053777,0.00014835,2]
[394976852,1764246518555,10000.01,0.00014835,2]
[394976853,1764246518581,10000.01,0.00014835,2]
[394976854,1764246518607,10000.01,0.00014835,2]
[394976855,1764246518631,1006.71236223,0.00014835,2]
[394976857,1764246541301,300.0,0.00014934,2]
[394976860,1764246601283,300.0,0.00014934,2]
[394976861,1764246601569,1200.0,0.00014934,2]
[394976862,1764246602147,-150.99,0.00014935,2]
[394976863,1764246602181,-1114.46,0.00014935,2]
[394976864,1764246604603,-2530.9,0.00014935,2]
[394976868,1764246607681,-1367.99,0.00014935,2]
[394976869,1764246607709,-2325.82,0.00014935,2]
[394976871,1764246610708,-2612.39,0.00014935,2]
[394976890,1764246631947,-250.0,0.00014778,2]
[394976892,1764246631958,-187.45353053,0.00014882,2]
[394976894,1764246631968,-300.0,0.00014935,2]
[394976896,1764246631978,-4975.56030207,0.00014936,2]
[394976897,1764246631989,-291.36469732,0.00014936,2]
[394976899,1764246632004,-11088.92950061,0.00014936,2]
[394976901,1764246632014,-168.0,0.00014983,2]
[394976902,1764246632024,-357.27572748,0.00015169,2]
[394976903,1764246632034,-3592.71564582,0.00015176,2]
[394976904,1764246632045,-500.0,0.00015181,2]
[394976905,1764246632064,-603.23552,0.0001525,2]
[394976906,1764246632074,-150.0,0.00015288,2]
[394976907,1764246632083,-150.0,0.00015288,2]
[394976908,1764246632092,-150.0,0.00015288,2]
[394976909,1764246632103,-150.0,0.00015288,2]
[394976910,1764246632113,-150.0,0.00015288,2]
[394976911,1764246632122,-150.0,0.00015288,2]
[394976912,1764246632131,-1115.0,0.000153,2]
[394976913,1764246632141,-300.0,0.00015319,2]
[394976914,1764246632150,-12351.5179254,0.0001532,2]
[394976915,1764246632159,-1825.3950031,0.0001532,2]
[394976916,1764246632169,-65289.000981,0.0001532,2]
[394976918,1764246632178,-2531.5517171,0.0001532,2]
[394976919,1764246632186,-603.23552,0.0001538,2]
[394976922,1764246632196,-151.0,0.000154,2]
[394976923,1764246632205,-200.0,0.000154,2]
[394976925,1764246632214,-1221.37,0.000154,2]
[394976927,1764246632223,-493.0,0.00015402,2]
[394976929,1764246632232,-493.0,0.00015418,2]
[394976931,1764246632242,-493.0,0.00015462,2]
[394976934,1764246632251,-247.3030138,0.00015474,2]
[394976935,1764246632260,-150.0,0.00015476,2]
[394976937,1764246632271,-254.24,0.00015479,2]
[394976939,1764246632281,-493.0,0.00015482,2]
[394976942,1764246632299,-716.19,0.000155,2]
[394976943,1764246632310,-150.0,0.000155,2]
[394976945,1764246632319,-152.07277894,0.000155,2]
[394976946,1764246632329,-150.0,0.000155,2]
[394976947,1764246632339,-150.0,0.000155,2]
[394976948,1764246632348,-274.89253593,0.000155,2]
[394976949,1764246632358,-150.0,0.000155,2]
[394976950,1764246632368,-150.0,0.000155,2]
[394976951,1764246632377,-288.12557967,0.000155,2]
[394976952,1764246632388,-256.37134736,0.000155,2]
[394976953,1764246632398,-222.31104798,0.000155,2]
[394976954,1764246632407,-150.0,0.000155,2]
[394976955,1764246632418,-702.04,0.000155,2]
[394976956,1764246632427,-1308.14,0.000155,2]
[394976957,1764246632437,-702.04,0.000155,2]
[394976958,1764246632446,-150.0,0.000155,2]
[394976959,1764246632456,-158.73777718,0.000155,2]
[394976960,1764246632465,-150.0,0.000155,2]
[394976961,1764246632475,-150.0,0.000155,2]
[394976962,1764246632484,-150.0,0.000155,2]
[394976963,1764246632493,-150.0,0.000155,2]
[394976964,1764246632503,-500.0,0.000155,2]
[394976965,1764246632512,-200.0,0.000155,2]
[394976966,1764246632521,-150.0,0.000155,2]
[394976967,1764246632532,-562.0,0.000155,2]
[394976968,1764246632541,-285.72135942,0.000155,2]
[394976969,1764246632551,-500.0,0.000155,2]
[394976970,1764246632560,-150.0,0.000155,2]
[394976971,1764246632569,-150.0,0.000155,2]
[394976972,1764246632579,-200.0,0.000155,2]
[394976973,1764246632588,-169.16927679,0.000155,2]
[394976974,1764246632597,-150.0,0.000155,2]
[394976975,1764246632606,-150.0,0.000155,2]
[394976976,1764246632616,-500.0,0.000155,2]
[394976977,1764246632625,-500.0,0.000155,2]
[394976978,1764246632635,-1508.40557379,0.000155,2]
[394976979,1764246632644,-81.19880184,0.00015516,2]
[394976980,1764246638171,-187.45353052,0.0001522,2]
[394976981,1764246638182,-151.0,0.00015516,2]
[394976982,1764246638191,-3511.51684398,0.00015516,2]
[394976983,1764246638201,-150.0,0.0001553,2]
[394976984,1764246638211,-493.0,0.00015556,2]
[394976985,1764246638221,-168.0,0.0001558,2]
[394976987,1764246638230,-166.66,0.00015582,2]
[394976988,1764246638241,-493.0,0.00015594,2]
[394976989,1764246638251,-177.74,0.000156,2]
[394976990,1764246638261,-702.04,0.000156,2]
[394976991,1764246638271,-702.04,0.000156,2]
[394976992,1764246638284,-702.04,0.000156,2]
[394976993,1764246638293,-150.0,0.000156,2]
[394976994,1764246638302,-479.37,0.000156,2]
[394976995,1764246638312,-702.04,0.000156,2]
[394976996,1764246638322,-702.04,0.000156,2]
[394976997,1764246638331,-702.04,0.000156,2]
[394976999,1764246638342,-702.04,0.000156,2]
[394977001,1764246638352,-702.04,0.000156,2]
[394977002,1764246638361,-702.04,0.000156,2]
[394977004,1764246638372,-355.48,0.000156,2]
[394977005,1764246638381,-479.37,0.000156,2]
[394977006,1764246638392,-702.04,0.000156,2]
[394977007,1764246638402,-302.2,0.000156,2]
[394977008,1764246638412,-673.51,0.000156,2]
[394977009,1764246638423,-702.04,0.000156,2]
[394977010,1764246638433,-702.04,0.000156,2]
[394977011,1764246638448,-702.04,0.000156,2]
[394977012,1764246638458,-702.04,0.000156,2]
[394977013,1764246638469,-434.79,0.000156,2]
[394977014,1764246638479,-702.04,0.000156,2]
[394977015,1764246638489,-702.04,0.000156,2]
[394977016,1764246638499,-176.69,0.000156,2]
[394977017,1764246638509,-1243.54,0.000156,2]
[394977018,1764246638519,-702.04,0.000156,2]
[394977019,1764246638530,-702.04,0.000156,2]
[394977020,1764246638539,-702.04,0.000156,2]
[394977021,1764246638694,-2102.17,0.00015601,2]
[394977022,1764246638744,-610.0,0.00015601,2]
[394977023,1764246638753,-857.759,0.00015601,2]
[394977024,1764246638763,-603.23553,0.0001563,2]
[394977025,1764246638772,-493.0,0.00015633,2]
[394977026,1764246638781,-300.0,0.00015635,2]
[394977027,1764246638791,-151.89822632,0.00015637,2]
[394977028,1764246638800,-150.0,0.00015637,2]
[394977029,1764246638810,-150.0,0.00015637,2]
[394977030,1764246638819,-150.0,0.00015637,2]
[394977031,1764246638828,-150.0,0.00015637,2]
[394977032,1764246638837,-150.0,0.00015637,2]
[394977033,1764246638846,-150.0,0.00015637,2]
[394977034,1764246638855,-150.0,0.00015637,2]
[394977035,1764246638864,-150.0,0.00015637,2]
[394977036,1764246638874,-150.0,0.00015637,2]
[394977037,1764246638888,-500.0,0.00015637,2]
[394977038,1764246638897,-211.52660131,0.00015637,2]
[394977039,1764246638906,-562.0,0.00015637,2]
[394977040,1764246638915,-500.0,0.00015637,2]
[394977041,1764246638924,-152.7582617,0.00015637,2]
[394977042,1764246638934,-151.65385416,0.00015637,2]
[394977043,1764246638943,-150.0,0.00015637,2]
[394977044,1764246638954,-500.0,0.00015637,2]
[394977045,1764246638964,-151.0,0.00015657,2]
[394977046,1764246638973,-151.0,0.00015657,2]
[394977047,1764246638983,-163.279959,0.00015657,2]
[394977048,1764246638992,-163.279959,0.00015657,2]
[394977049,1764246639001,-163.279959,0.00015657,2]
[394977050,1764246639013,-163.279959,0.00015657,2]
[394977051,1764246639022,-1257.0,0.00015657,2]
[394977052,1764246639031,-823.0,0.00015657,2]
[394977053,1764246639040,-660.0,0.00015657,2]
[394977054,1764246639050,-909.0,0.00015657,2]
[394977055,1764246639059,-1193.0,0.00015657,2]
[394977056,1764246639068,-493.0,0.00015661,2]
[394977057,1764246639078,-150.0,0.00015665,2]
[394977058,1764246639087,-1221.37,0.00015674,2]
[394977059,1764246639096,-250.0,0.00015687,2]
[394977060,1764246639105,-150.0,0.00015687,2]
[394977061,1764246639115,-150.0,0.00015687,2]
[394977062,1764246639124,-150.0,0.00015687,2]
[394977063,1764246639134,-150.0,0.00015687,2]
[394977064,1764246639143,-150.0,0.00015687,2]
[394977065,1764246639152,-17752.49975948,0.00015699,2]
[394977066,1764246639162,-177.78,0.000157,2]
[394977067,1764246639171,-702.04,0.000157,2]
[394977068,1764246639181,-1388.03,0.000157,2]
[394977069,1764246639190,-702.04,0.000157,2]
[394977070,1764246639200,-702.04,0.000157,2]
[394977071,1764246639209,-702.04,0.000157,2]
[394977072,1764246639218,-150.0,0.00015712,2]
[394977073,1764246639228,-151.0,0.0001572,2]
[394977074,1764246639238,-493.0,0.00015735,2]
[394977075,1764246639247,-1508.40557376,0.00015767,2]
[394977076,1764246639256,-150.0,0.00015773,2]
[394977077,1764246639265,-152.82038322,0.00015774,2]
[394977078,1764246639275,-169.74562333,0.00015774,2]
[394977079,1764246639284,-150.0,0.00015774,2]
[394977080,1764246639293,-150.0,0.00015774,2]
[394977081,1764246639302,-172.65775664,0.00015774,2]
[394977082,1764246639311,-258.94803532,0.00015774,2]
[394977083,1764246639320,-150.0,0.00015774,2]
[394977084,1764246639329,-271.48236835,0.00015774,2]
[394977085,1764246639339,-264.06322707,0.00015774,2]
[394977086,1764246639349,-500.0,0.00015774,2]
[394977087,1764246639358,-562.0,0.00015774,2]
[394977088,1764246639367,-212.85717472,0.00015774,2]
[394977089,1764246639377,-416.47071306,0.0001581,2]
[394977090,1764246639386,-150.0,0.00015854,2]
[394977091,1764246639398,-150.0,0.00015854,2]
[394977092,1764246639407,-150.0,0.00015854,2]
[394977093,1764246639416,-3592.71564582,0.00015857,2]
[394977094,1764246639425,-603.23552,0.0001588,2]
[394977095,1764246639434,-151.0,0.000159,2]
[394977096,1764246639444,-151.0,0.000159,2]
[394977097,1764246639453,-163.279959,0.000159,2]
[394977098,1764246639462,-163.279959,0.000159,2]
[394977099,1764246639471,-163.279959,0.000159,2]
[394977100,1764246639481,-163.279959,0.000159,2]
[394977101,1764246639490,-166.87822206,0.000159,2]
[394977102,1764246639500,-151.0,0.000159,2]
[394977103,1764246639509,-326.07383399,0.000159,2]
[394977104,1764246639519,-14276.9233084,0.000159,2]
[394977105,1764246640055,-913.0,0.000159,2]
[394977106,1764246640112,-1255.04665894,0.000159,2]
[394977107,1764246640227,-1057.00000001,0.000159,2]
[394977108,1764246640391,-372.34049029,0.000159,2]
[394977109,1764246640402,-393.66239999,0.000159,2]
[394977118,1764246646211,-1602.0,0.00015601,2]
[394977119,1764246646220,-1212.14026739,0.000159,2]
[394977120,1764246646375,-519.88687498,0.000159,2]
[394977122,1764246646384,-153.956112,0.0001591,2]
[394977123,1764246646394,-245.98164362,0.0001591,2]
[394977124,1764246646405,-3254.75690655,0.0001591,2]
[394977131,1764246743111,150.0,0.00014622,2]
[394977134,1764246777103,-791.2495253,0.00014735,2]
[394977135,1764246779987,-175.77771,0.00014735,2]
[394977138,1764246782020,-280.72856826,0.00014735,2]
[394977146,1764246784206,-261.62460015,0.00014735,2]
[394977151,1764246785720,-300.0,0.00014735,2]
[394977192,1764246837469,-404.18770546,0.00014735,2]
[394977193,1764246837492,-95.93926935,0.00014735,2]
[394977247,1764246871062,200.0,0.00014661,2]
[394977250,1764246882563,-70.93895271,0.00014735,2]
[394977251,1764246882591,-150.0,0.00014833,2]
[394977252,1764246882627,-194.69111771,0.00014834,2]
[394977253,1764246882656,-251.8250059,0.00014834,2]
[394977254,1764246882685,-500.0,0.00014834,2]
[394977255,1764246882713,-405.01313948,0.00014834,2]
[394977256,1764246882744,-500.0,0.00014834,2]
[394977257,1764246882771,-500.0,0.00014834,2]
[394977258,1764246882798,-500.0,0.00014834,2]
[394977259,1764246882835,-500.0,0.00014834,2]
[394977260,1764246882868,-500.0,0.00014834,2]
[394977261,1764246882898,-500.0,0.00014834,2]
[394977262,1764246882927,-278.01419519,0.00014834,2]
[394977264,1764246885365,-299.04517802,0.00014834,2]
[394977265,1764246885394,-500.0,0.00014834,2]
[394977266,1764246885427,-500.0,0.00014834,2]
[394977267,1764246885457,-178.6060663,0.00014834,2]
[394977268,1764246885490,-500.0,0.00014834,2]
[394977269,1764246885519,-500.0,0.00014834,2]
[394977270,1764246885547,-599.77942446,0.00014834,2]
[394977271,1764246885576,-500.0,0.00014834,2]
[394977272,1764246885607,-500.0,0.00014834,2]
[394977273,1764246885640,-500.0,0.00014834,2]
[394977274,1764246885671,-255.12285138,0.00014834,2]
[394977275,1764246888610,-704.06,0.00014808,2]
[394977276,1764246888645,-500.0,0.00014834,2]
[394977277,1764246888678,-500.0,0.00014834,2]
[394977278,1764246888710,-500.0,0.00014834,2]
[394977279,1764246888742,-500.0,0.00014834,2]
[394977280,1764246888774,-500.0,0.00014834,2]
[394977281,1764246888808,-500.0,0.00014834,2]
[394977282,1764246888840,-500.0,0.00014834,2]
[394977283,1764246888871,-500.0,0.00014834,2]
[394977284,1764246888902,-91.89,0.00014834,2]
[394977285,1764246891407,-408.11,0.00014834,2]
[394977286,1764246891439,-500.0,0.00014834,2]
[394977287,1764246891470,-500.0,0.00014834,2]
[394977288,1764246891503,-500.0,0.00014834,2]
[394977289,1764246891534,-350.0,0.00014834,2]
[394977290,1764246891561,-500.0,0.00014834,2]
[394977291,1764246891589,-405.97108758,0.00014834,2]
[394977292,1764246891617,-500.0,0.00014834,2]
[394977293,1764246891649,-500.0,0.00014834,2]
[394977295,1764246901277,300.0,0.00014834,2]
[394977296,1764246901313,1200.0,0.00014834,2]
[394977297,1764246901882,171.84782484,0.00014834,2]
[394977301,1764246937162,171.91974677,0.00014735,2]
[394977302,1764246945009,157.29364412,0.00014735,2]
[394977308,1764246987151,998.49900001,0.00025,120]
[394977310,1764246993718,187.14,0.00011663,2]
[394977311,1764246993944,187.14,0.00014579,2]
[394977313,1764246995620,528.93568053,0.00014735,2]
[394977315,1764247004944,280.7424,0.00014735,2]
[394977316,1764247017147,1000.0,0.00014735,2]
[394977319,1764247029503,527.74,0.00013699,2]
[394977322,1764247052906,-200.0,0.00014826,2]
[394977323,1764247052937,-500.0,0.00014826,2]
[394977324,1764247052967,-151.0,0.00014826,2]
[394977325,1764247053011,-300.0,0.00014826,2]
[394977326,1764247053044,-281.86349704,0.00014826,2]
[394977327,1764247053075,-206.03832228,0.00014826,2]
[394977328,1764247053105,-250.0,0.00014826,2]
[394977329,1764247053135,-250.0,0.00014826,2]
[394977330,1764247053169,-284.74760302,0.00014826,2]
[394977331,1764247053202,-500.0,0.00014826,2]
[394977332,1764247053233,-500.0,0.00014826,2]
[394977333,1764247053262,-500.0,0.00014826,2]
[394977334,1764247053295,-500.0,0.00014826,2]
[394977335,1764247053325,-500.0,0.00014826,2]
[394977336,1764247053577,-500.0,0.00014826,2]
[394977337,1764247053608,-500.0,0.00014826,2]
[394977338,1764247053644,-500.0,0.00014826,2]
[394977339,1764247053676,-500.0,0.00014826,2]
[394977340,1764247053707,-500.0,0.00014826,2]
[394977341,1764247053738,-500.0,0.00014826,2]
[394977342,1764247053767,-500.0,0.00014826,2]
[394977343,1764247053797,-500.0,0.00014826,2]
[394977344,1764247053826,-500.0,0.00014826,2]
[394977345,1764247053854,-500.0,0.00014826,2]
[394977346,1764247054040,-500.0,0.00014826,2]
[394977347,1764247054071,-500.0,0.00014826,2]
[394977348,1764247054103,-500.0,0.00014826,2]
[394977349,1764247054133,-500.0,0.00014826,2]
[394977350,1764247054166,-500.0,0.00014826,2]
[394977351,1764247054195,-500.0,0.00014826,2]
[394977352,1764247054226,-500.0,0.00014826,2]
[394977353,1764247054259,-500.0,0.00014826,2]
[394977354,1764247054291,-500.0,0.00014826,2]
[394977355,1764247054320,-500.0,0.00014826,2]
[394977356,1764247054758,-500.0,0.00014826,2]
[394977357,1764247054788,-500.0,0.00014826,2]
[394977358,1764247054819,-500.0,0.00014826,2]
[394977359,1764247054849,-500.0,0.00014826,2]
[394977360,1764247054878,-500.0,0.00014826,2]
[394977361,1764247054906,-500.0,0.00014826,2]
[394977362,1764247054937,-500.0,0.00014826,2]
[394977363,1764247054966,-500.0,0.00014826,2]
[394977364,1764247054995,-200.0,0.00014826,2]
[394977365,1764247055052,-1617.95045639,0.00014826,2]
[394977366,1764247055080,-151.0,0.00014832,2]
[394977367,1764247055109,-150.0,0.00014833,2]
[394977368,1764247055138,-300.0,0.00014833,2]
[394977369,1764247055172,-371.31175231,0.00014834,2]
[394977370,1764247055201,-344.51916157,0.00014834,2]
[394977371,1764247055231,-168.61683458,0.00014834,2]
[394977372,1764247055259,-500.0,0.00014834,2]
[394977373,1764247055287,-500.0,0.00014834,2]
[394977374,1764247055315,-500.0,0.00014834,2]
[394977375,1764247055344,-199.08727942,0.00014834,2]
[394977376,1764247055430,-500.0,0.00014834,2]
[394977377,1764247055461,-500.0,0.00014834,2]
[394977378,1764247055492,-500.0,0.00014834,2]
[394977379,1764247055524,-500.0,0.00014834,2]
[394977380,1764247055556,-500.0,0.00014834,2]
[394977381,1764247055587,-500.0,0.00014834,2]
[394977382,1764247055618,-500.0,0.00014834,2]
[394977383,1764247055649,-500.0,0.00014834,2]
[394977384,1764247055680,-500.0,0.00014834,2]
[394977385,1764247055711,-474.2470322,0.00014834,2]
[394977386,1764247055815,-51.5159356,0.00014834,2]
[394977387,1764247055848,-500.0,0.00014834,2]
[394977388,1764247055880,-500.0,0.00014834,2]
[394977389,1764247055912,-500.0,0.00014834,2]
[394977390,1764247055942,-500.0,0.00014834,2]
[394977391,1764247055973,-500.0,0.00014834,2]
[394977392,1764247056004,-500.0,0.00014834,2]
[394977393,1764247056035,-500.0,0.00014834,2]
[394977394,1764247056066,-500.0,0.00014834,2]
[394977395,1764247056097,-500.0,0.00014834,2]
[394977396,1764247056128,-396.9781288,0.00014834,2]
[394977397,1764247056255,-103.0218712,0.00014834,2]
[394977398,1764247056286,-500.0,0.00014834,2]
[394977399,1764247056318,-500.0,0.00014834,2]
[394977400,1764247056350,-500.0,0.00014834,2]
[394977401,1764247056381,-500.0,0.00014834,2]
[394977402,1764247056408,-500.0,0.00014834,2]
[394977403,1764247056438,-500.0,0.00014834,2]
[394977404,1764247056467,-491.43382697,0.00014834,2]
[394977405,1764247056498,-500.0,0.00014834,2]
[394977406,1764247056526,-658.15217516,0.00014834,2]
[394977407,1764247056622,-2311.4891963,0.00014834,2]
[394977408,1764247056651,-250.67117171,0.00014834,2]
[394977409,1764247056680,-578.20924308,0.00014835,2]
[394977411,1764247067734,163.39,0.00019178,30]
[394977412,1764247069429,1200.0,0.00014834,2]
[394977414,1764247081448,300.0,0.00014834,2]
[394977416,1764247094350,151.0,0.00014832,2]
[394977419,1764247118053,1334.93686036,0.00014735,2]
[394977421,1764247120233,157.2936441,0.00014735,2]
[394977423,1764247141381,300.0,0.00014834,2]
[394977425,1764247142122,150.0,0.00014834,2]
[394977426,1764247150771,9392.7163559,0.00014735,2]
[394977427,1764247150794,10000.01,0.00014735,2]
[394977428,1764247150817,3530.64829159,0.00014735,2]
[394977434,1764247201280,300.0,0.00014834,2]
[394977435,1764247201591,1200.0,0.00014834,2]
[394977437,1764247206960,2425.49,0.00014825,2]
[394977438,1764247207176,2425.49,0.00014825,2]
[394977444,1764247261367,300.0,0.00014834,2]
[394977447,1764247288465,164.66461822,0.00014826,2]
[394977448,1764247291242,158.49727213,0.00014735,2]
[394977449,1764247293078,932.694,0.00014538,2]
[394977450,1764247293190,156.943,0.00014538,2]
[394977451,1764247294283,200.4318045,0.00014321,2]
[394977454,1764247321355,300.0,0.00014834,2]
[394977455,1764247322321,150.0,0.00014834,2]
[394977457,1764247327421,206.71851289,0.00014826,2]
[394977459,1764247331573,500.0,0.00014826,2]
[394977460,1764247332487,500.0,0.00014826,2]
[394977461,1764247333101,79.08079226,0.00014826,2]
[394977462,1764247333127,420.91920774,0.00014826,2]
[394977463,1764247333700,500.0,0.00014826,2]
[394977464,1764247334369,500.0,0.00014826,2]
[394977465,1764247334965,500.0,0.00014826,2]
[394977466,1764247335601,500.0,0.00014826,2]
[394977467,1764247336195,312.13280459,0.00014826,2]
[394977468,1764247336737,205.57943248,0.00014826,2]
[394977469,1764247339795,500.0,0.00014826,2]
[394977470,1764247340596,151.0,0.00014826,2]
[394977472,1764247353877,500.0,0.00014826,2]
[394977473,1764247354477,500.0,0.00014826,2]
[394977474,1764247355108,500.0,0.00014826,2]
[394977475,1764247355853,500.0,0.00014826,2]
[394977476,1764247356398,500.0,0.00014826,2]
[394977477,1764247357001,500.0,0.00014826,2]
[394977478,1764247357609,500.0,0.00014826,2]
[394977479,1764247358226,500.0,0.00014826,2]
[394977480,1764247358821,500.0,0.00014826,2]
[394977481,1764247359428,500.0,0.00014826,2]
[394977482,1764247360035,500.0,0.00014826,2]
[394977484,1764247377330,910.37855519,0.00014833,2]
[394977485,1764247377354,3544.24474491,0.00014833,2]
[394977486,1764247381619,300.0,0.00014834,2]
[394977488,1764247399101,2500.0,0.00014735,2]
[394977490,1764247433460,171.91974677,0.00014735,2]
[394977492,1764247441601,300.0,0.00014834,2]
[394977494,1764247463954,158.49727208,0.00014735,2]
[394977498,1764247501552,1200.0,0.00014834,2]
[394977499,1764247502557,150.0,0.00014834,2]
[394977501,1764247506504,200.0,0.0001476,2]
[394977504,1764247537011,10000.01,0.00014735,2]
[394977505,1764247537035,10000.01,0.00014735,2]
[394977506,1764247537059,631.01718275,0.00014735,2]
[394977508,1764247555374,1436.8259,0.00014735,2]
[394977511,1764247562189,7932.16691725,0.00014735,2]
[394977512,1764247562213,10000.01,0.00014735,2]
[394977524,1764247565770,-500.0,0.00014735,2]
[394977531,1764247567742,-373.35215359,0.00014735,2]
[394977536,1764247569480,-239.70283635,0.00014735,2]
[394977556,1764247575800,-162.9696661,0.00014735,2]
[394977562,1764247577241,-4013.19222829,0.00014735,2]
[394977563,1764247577357,-10000.01,0.00014735,2]
[394977565,1764247577466,-10000.01,0.00014735,2]
[394977566,1764247577592,-10000.01,0.00014735,2]
[394977568,1764247577722,-10000.01,0.00014735,2]
[394977570,1764247577873,-10000.01,0.00014735,2]
[394977572,1764247578091,-10000.01,0.00014735,2]